fUST/lending_fUST_20250506
["ID","MTS","AMOUNT","RATE_DAILY","PERIOD"]
[360007584,1746477063966,-1429.01,0.00033698,8]
[360007585,1746477063976,-400.0,0.00033698,2]
[360007586,1746477063986,-726.2,0.00033698,8]
[360007587,1746477063996,-400.0,0.00033698,8]
[360007588,1746477064006,-494.32,0.00033698,8]
[360007589,1746477064016,-400.0,0.00033698,8]
[360007590,1746477064025,-400.0,0.00033698,2]
[360007591,1746477064035,-2667.55,0.00033698,8]
[360007592,1746477064045,-4088.24,0.000337,7]
[360007593,1746477064055,-8795.0,0.000337,30]
[360007594,1746477064064,-151.0,0.00033721,5]
[360007595,1746477064075,-205.310319,0.00033726,3]
[360007596,1746477064085,-160.0,0.000338,43]
[360007597,1746477064094,-545.0,0.00033904,2]
[360007598,1746477064104,-422.895,0.00033904,2]
[360007599,1746477064113,-293.934522,0.00033904,14]
[360007600,1746477064123,-1000.0,0.00033972,28]
[360007601,1746477064132,-1000.0,0.00033972,28]
[360007602,1746477064141,-1000.0,0.00033972,28]
[360007603,1746477064151,-1000.0,0.00033972,28]
[360007604,1746477064160,-1000.0,0.00033972,28]
[360007605,1746477064170,-688.436082,0.00033972,28]
[360007606,1746477064182,-151.0,0.00033972,14]
[360007607,1746477064191,-151.0,0.00033972,14]
[360007608,1746477064201,-669.864565,0.00033972,14]
[360007609,1746477064211,-669.864565,0.00033972,14]
[360007610,1746477064220,-669.864565,0.00033972,14]
[360007611,1746477064229,-669.864558,0.00033972,14]
[360007612,1746477064239,-346.754623,0.00033972,14]
[360007613,1746477064248,-346.754623,0.00033972,14]
[360007614,1746477064258,-346.754623,0.00033972,14]
[360007615,1746477064267,-346.754623,0.00033972,14]
[360007616,1746477064277,-151.0,0.00033972,14]
[360007617,1746477064286,-151.0,0.00033972,14]
[360007618,1746477064296,-1954.51,0.00033972,8]
[360007619,1746477064305,-719.2,0.00033972,8]
[360007620,1746477064315,-169.539145,0.00033972,14]
[360007621,1746477064324,-169.539145,0.00033972,14]
[360007622,1746477064334,-169.539145,0.00033972,14]
[360007623,1746477064344,-400.0,0.00033972,8]
[360007624,1746477064354,-169.539145,0.00033972,14]
[360007625,1746477064364,-400.0,0.00033972,8]
[360007626,1746477064374,-253.416103,0.00033972,14]
[360007627,1746477064384,-400.0,0.00033972,8]
[360007628,1746477064394,-253.416103,0.00033972,14]
[360007629,1746477064403,-253.416103,0.00033972,14]
[360007630,1746477064413,-253.416103,0.00033972,14]
[360007631,1746477064423,-400.0,0.00033972,8]
[360007632,1746477064434,-444.85,0.00033972,8]
[360007633,1746477064444,-400.0,0.00033972,8]
[360007634,1746477064455,-676.07,0.00033972,8]
[360007635,1746477064464,-206.545488,0.00033972,14]
[360007636,1746477064474,-206.545488,0.00033972,14]
[360007637,1746477064483,-206.545488,0.00033972,14]
[360007638,1746477064493,-206.545488,0.00033972,14]
[360007639,1746477064503,-206.545488,0.00033972,14]
[360007640,1746477064513,-400.0,0.00033972,8]
[360007641,1746477064523,-206.545488,0.00033972,14]
[360007642,1746477064535,-400.0,0.00033972,8]
[360007643,1746477064547,-631.57,0.00033972,8]
[360007644,1746477064556,-400.0,0.00033972,8]
[360007645,1746477064565,-400.0,0.00033972,8]
[360007646,1746477064575,-454.95,0.00033972,8]
[360007647,1746477064585,-479.7,0.00033972,8]
[360007648,1746477064596,-400.0,0.00033972,8]
[360007649,1746477064606,-400.0,0.00033972,8]
[360007650,1746477064617,-400.0,0.00033972,8]
[360007651,1746477064627,-400.0,0.00033972,8]
[360007652,1746477064637,-400.0,0.00033972,8]
[360007653,1746477064647,-639.16,0.00033972,8]
[360007654,1746477064656,-400.0,0.00033972,8]
[360007655,1746477064665,-400.0,0.00033972,8]
[360007656,1746477064676,-151.0,0.00033972,14]
[360007657,1746477064685,-151.0,0.00033972,14]
[360007658,1746477064695,-507.79,0.00033972,8]
[360007659,1746477064704,-400.0,0.00033972,8]
[360007660,1746477064714,-400.0,0.00033972,8]
[360007661,1746477064724,-400.0,0.00033972,8]
[360007662,1746477064734,-151.0,0.00033972,14]
[360007663,1746477064743,-151.0,0.00033972,14]
[360007664,1746477064753,-562.08,0.00033972,8]
[360007665,1746477064763,-402.903244,0.00033972,14]
[360007666,1746477064772,-402.903244,0.00033972,14]
[360007667,1746477064782,-171.29452061,0.00033972,8]
[360007668,1746477064792,-402.903244,0.00033972,14]
[360007669,1746477064802,-402.903244,0.00033972,14]
[360007670,1746477064812,-504.71,0.00033972,8]
[360007671,1746477064821,-458.02,0.00033972,8]
[360007672,1746477064831,-151.0,0.00033972,14]
[360007673,1746477064841,-400.0,0.00033972,8]
[360007674,1746477064851,-690.49,0.00033972,8]
[360007675,1746477064860,-400.0,0.00033972,8]
[360007676,1746477064870,-1211.7,0.00033972,8]
[360007677,1746477064879,-400.0,0.00033972,8]
[360007678,1746477064889,-716.28,0.00033972,8]
[360007679,1746477064899,-472.57967217,0.00033972,8]
[360007680,1746477064909,-644.66,0.00033972,8]
[360007681,1746477064919,-400.0,0.00033972,8]
[360007682,1746477064931,-400.0,0.00033972,8]
[360007683,1746477064941,-730.5,0.00033972,8]
[360007684,1746477064952,-400.0,0.00033972,8]
[360007685,1746477064965,-557.119261,0.00033972,14]
[360007686,1746477064975,-557.119261,0.00033972,14]
[360007687,1746477064986,-207.30629043,0.00033972,8]
[360007688,1746477064995,-400.0,0.00033972,8]
[360007689,1746477065006,-500.0,0.00033972,8]
[360007690,1746477065017,-557.119261,0.00033972,14]
[360007691,1746477065026,-557.119255,0.00033972,14]
[360007692,1746477065035,-400.0,0.00033972,8]
[360007693,1746477065045,-474.85,0.00033972,8]
[360007694,1746477065054,-400.0,0.00033972,8]
[360007695,1746477065064,-400.0,0.00033972,8]
[360007696,1746477065075,-400.0,0.00033972,8]
[360007697,1746477065085,-2439.35,0.00033972,8]
[360007698,1746477065094,-724.61,0.00033972,8]
[360007699,1746477065104,-400.0,0.00033972,8]
[360007700,1746477065113,-706.96,0.00033972,8]
[360007701,1746477065123,-499.18,0.00033972,8]
[360007702,1746477065133,-400.0,0.00033972,8]
[360007703,1746477065143,-400.0,0.00033972,8]
[360007704,1746477065152,-400.0,0.00033972,8]
[360007705,1746477065162,-473.77,0.00033972,8]
[360007706,1746477065171,-3364.55,0.00033972,8]
[360007707,1746477065183,-400.0,0.00033972,8]
[360007708,1746477065192,-714.95,0.00033972,8]
[360007709,1746477065202,-400.0,0.00033972,8]
[360007710,1746477065212,-156.3405842,0.00033972,8]
[360007711,1746477065234,-500.0,0.00033972,8]
[360007712,1746477065244,-400.0,0.00033972,8]
[360007713,1746477065255,-400.0,0.00033972,8]
[360007714,1746477065264,-422.23,0.00033972,8]
[360007715,1746477065274,-400.0,0.00033972,8]
[360007716,1746477065284,-400.0,0.00033972,8]
[360007717,1746477065293,-400.0,0.00033972,8]
[360007718,1746477065302,-400.0,0.00033972,8]
[360007719,1746477065311,-715.56,0.00033972,8]
[360007720,1746477065321,-643.8,0.00033972,8]
[360007721,1746477065331,-400.0,0.00033972,8]
[360007722,1746477065340,-400.0,0.00033972,8]
[360007723,1746477065349,-400.0,0.00033972,8]
[360007724,1746477065359,-826.75,0.00033972,8]
[360007725,1746477065369,-1300.61,0.00033972,8]
[360007726,1746477065378,-1570.62,0.00033972,8]
[360007727,1746477065388,-400.0,0.00033972,8]
[360007728,1746477065398,-400.0,0.00033972,8]
[360007729,1746477065408,-923.0,0.00033972,8]
[360007730,1746477065417,-400.0,0.00033972,8]
[360007731,1746477065427,-400.0,0.00033972,8]
[360007732,1746477065437,-400.0,0.00033972,8]
[360007733,1746477065447,-400.0,0.00033972,8]
[360007734,1746477065456,-221.33037167,0.00033972,8]
[360007735,1746477065465,-400.0,0.00033972,8]
[360007736,1746477065475,-407.51,0.00033972,8]
[360007737,1746477065484,-518.33,0.00033972,8]
[360007738,1746477065494,-400.0,0.00033972,8]
[360007739,1746477065504,-151.0,0.00033972,14]
[360007740,1746477065514,-400.0,0.00033972,8]
[360007741,1746477065524,-400.0,0.00033972,8]
[360007742,1746477065538,-400.0,0.00033972,8]
[360007743,1746477065548,-400.0,0.00033972,8]
[360007744,1746477065557,-850.47,0.00033972,8]
[360007745,1746477065567,-411.5751012,0.00033972,8]
[360007746,1746477065577,-896.58,0.00033972,8]
[360007747,1746477065587,-867.32,0.00033972,8]
[360007748,1746477065596,-1581.59,0.00033972,8]
[360007749,1746477065607,-779.84,0.00033972,8]
[360007750,1746477065617,-412.63,0.00033972,8]
[360007751,1746477065626,-1026.12,0.00033972,8]
[360007752,1746477065635,-419.48410704,0.00033972,8]
[360007753,1746477065645,-963.38,0.00033972,8]
[360007754,1746477065654,-400.0,0.00033972,8]
[360007755,1746477065663,-400.0,0.00033972,8]
[360007756,1746477065673,-400.0,0.00033972,8]
[360007757,1746477065683,-1360.62,0.00033972,8]
[360007758,1746477065693,-400.0,0.00033972,8]
[360007759,1746477065702,-400.0,0.00033972,8]
[360007760,1746477065811,-3350.06,0.00033972,2]
[360007761,1746477065821,-843.52,0.00033972,8]
[360007762,1746477065830,-400.0,0.00033972,8]
[360007763,1746477065840,-400.0,0.00033972,8]
[360007764,1746477065849,-400.0,0.00033972,8]
[360007765,1746477065859,-400.0,0.00033972,8]
[360007766,1746477065868,-356.80548335,0.00033972,8]
[360007767,1746477065878,-400.0,0.00033972,8]
[360007768,1746477065887,-491.06,0.00033972,8]
[360007769,1746477065896,-400.0,0.00033972,8]
[360007770,1746477065906,-400.0,0.00033972,8]
[360007771,1746477065915,-749.47,0.00033972,8]
[360007772,1746477065926,-417.03,0.00033972,8]
[360007773,1746477065935,-442.22631754,0.00033972,8]
[360007774,1746477065945,-1603.07,0.00033972,8]
[360007775,1746477065954,-400.0,0.00033972,8]
[360007776,1746477065963,-541.63072618,0.00033972,8]
[360007777,1746477065973,-400.0,0.00033972,8]
[360007778,1746477065982,-151.0,0.00033972,14]
[360007779,1746477065992,-400.0,0.00033972,8]
[360007780,1746477066002,-400.0,0.00033972,8]
[360007781,1746477066012,-400.0,0.00033972,8]
[360007782,1746477066021,-1004.78,0.00033972,8]
[360007783,1746477066031,-441.29,0.00033972,8]
[360007784,1746477066040,-400.0,0.00033972,8]
[360007785,1746477066050,-400.0,0.00033972,8]
[360007786,1746477066059,-6760.003047,0.00033972,2]
[360007787,1746477066068,-1250.72,0.00033972,8]
[360007788,1746477066078,-400.0,0.00033972,8]
[360007789,1746477066087,-316.90835158,0.00033972,8]
[360007790,1746477066096,-6760.00304099,0.00033972,2]
[360007791,1746477066106,-535.58,0.00033972,8]
[360007792,1746477066115,-400.0,0.00033972,8]
[360007793,1746477066125,-192.57109786,0.00033972,8]
[360007794,1746477066135,-400.0,0.00033972,8]
[360007795,1746477066144,-606.68,0.00033972,8]
[360007796,1746477066153,-941.65,0.00033972,8]
[360007797,1746477066162,-553.65,0.00033972,8]
[360007798,1746477066172,-630.89,0.00033972,8]
[360007799,1746477066184,-992.75,0.00033972,8]
[360007800,1746477066193,-400.0,0.00033972,8]
[360007801,1746477066203,-400.0,0.00033972,8]
[360007802,1746477066212,-400.0,0.00033972,8]
[360007803,1746477066222,-1225.91,0.00033972,8]
[360007804,1746477066232,-307.102977,0.00033972,14]
[360007805,1746477066241,-411.73645313,0.00033972,8]
[360007806,1746477066251,-307.102986,0.00033972,14]
[360007807,1746477066260,-400.0,0.00033972,8]
[360007808,1746477066270,-400.0,0.00033972,8]
[360007809,1746477066280,-407.11,0.00033972,8]
[360007810,1746477066290,-400.0,0.00033972,8]
[360007811,1746477066299,-400.0,0.00033972,8]
[360007812,1746477066308,-400.0,0.00033972,8]
[360007813,1746477066317,-400.0,0.00033972,8]
[360007814,1746477066328,-400.0,0.00033972,8]
[360007815,1746477066337,-400.0,0.00033972,8]
[360007816,1746477066347,-275.10983,0.00033972,2]
[360007817,1746477066357,-3599.95,0.00033972,8]
[360007818,1746477066367,-275.109822,0.00033972,2]
[360007819,1746477066376,-2897.28,0.00033972,8]
[360007820,1746477066386,-481.35,0.00033972,8]
[360007821,1746477066396,-2205.69,0.00033972,8]
[360007822,1746477066405,-3492.57,0.00033972,8]
[360007823,1746477066415,-2970.08,0.00033972,8]
[360007824,1746477066427,-819.48,0.00033972,8]
[360007825,1746477066436,-1931.64,0.00033972,8]
[360007826,1746477066446,-400.0,0.00033972,8]
[360007827,1746477066456,-400.0,0.00033972,8]
[360007828,1746477066465,-400.0,0.00033972,8]
[360007829,1746477066474,-400.0,0.00033972,8]
[360007830,1746477066484,-438.54,0.00033972,8]
[360007831,1746477066494,-1111.28,0.00033972,8]
[360007832,1746477066503,-884.25,0.00033972,8]
[360007833,1746477066512,-400.0,0.00033972,8]
[360007834,1746477066521,-400.0,0.00033972,8]
[360007835,1746477066534,-400.0,0.00033972,8]
[360007836,1746477066543,-400.0,0.00033972,8]
[360007837,1746477066553,-400.0,0.00033972,8]
[360007838,1746477066562,-3000.85,0.00033972,8]
[360007839,1746477066571,-824.62,0.00033972,8]
[360007840,1746477066581,-400.0,0.00033972,8]
[360007841,1746477066591,-455.62,0.00033972,8]
[360007842,1746477066601,-400.0,0.00033972,8]
[360007843,1746477066610,-476.47,0.00033972,8]
[360007844,1746477066620,-1260.63,0.00033972,8]
[360007845,1746477066630,-9929.17,0.00033972,8]
[360007846,1746477066639,-2404.52,0.00033972,8]
[360007847,1746477066649,-583.91,0.00033972,8]
[360007848,1746477066659,-400.0,0.00033972,8]
[360007849,1746477066669,-1366.67,0.00033972,8]
[360007850,1746477066679,-804.65,0.00033972,8]
[360007851,1746477066689,-2610.48,0.00033972,8]
[360007852,1746477066699,-1582.3,0.00033972,8]
[360007853,1746477066708,-400.0,0.00033972,8]
[360007854,1746477066718,-400.0,0.00033972,8]
[360007855,1746477066728,-400.0,0.00033972,8]
[360007856,1746477066737,-400.0,0.00033972,8]
[360007857,1746477066747,-1810.86,0.00033972,8]
[360007858,1746477066756,-400.0,0.00033972,8]
[360007859,1746477066766,-8390.32,0.00033972,8]
[360007860,1746477066775,-400.0,0.00033972,8]
[360007861,1746477066785,-400.0,0.00033972,8]
[360007862,1746477066794,-644.41,0.00033972,8]
[360007863,1746477066804,-400.0,0.00033972,8]
[360007864,1746477066813,-400.0,0.00033972,8]
[360007865,1746477066823,-2005.57,0.00033972,8]
[360007866,1746477066832,-433.92,0.00033972,8]
[360007867,1746477066842,-400.0,0.00033972,8]
[360007868,1746477066851,-400.0,0.00033972,8]
[360007869,1746477066861,-487.64,0.00033972,8]
[360007870,1746477066870,-918.96,0.00033972,8]
[360007871,1746477066880,-400.0,0.00033972,8]
[360007872,1746477066890,-3259.27,0.00033972,8]
[360007873,1746477066900,-400.0,0.00033972,8]
[360007874,1746477066910,-2006.72,0.00033972,8]
[360007875,1746477066920,-497.93,0.00033972,8]
[360007876,1746477066930,-1436.28,0.00033972,8]
[360007877,1746477066940,-400.0,0.00033972,8]
[360007878,1746477066950,-469.87,0.00033972,8]
[360007879,1746477066960,-400.0,0.00033972,8]
[360007880,1746477066969,-1090.39,0.00033972,8]
[360007881,1746477066978,-400.0,0.00033972,8]
[360007882,1746477066988,-4062.47,0.00033972,8]
[360007883,1746477066997,-1114.33,0.00033972,8]
[360007884,1746477067007,-400.0,0.00033972,8]
[360007885,1746477067016,-2077.09,0.00033972,8]
[360007886,1746477067026,-400.0,0.00033972,8]
[360007887,1746477067036,-1456.15,0.00033972,8]
[360007888,1746477067046,-546.39,0.00033972,8]
[360007889,1746477067056,-400.0,0.00033972,8]
[360007890,1746477067066,-4476.54,0.00033972,8]
[360007891,1746477067076,-638.56,0.00033972,8]
[360007892,1746477067085,-400.0,0.00033972,8]
[360007893,1746477067094,-683.64,0.00033972,8]
[360007894,1746477067104,-400.0,0.00033972,8]
[360007895,1746477067113,-400.0,0.00033972,8]
[360007896,1746477067124,-619.75,0.00033972,8]
[360007897,1746477067133,-400.0,0.00033972,8]
[360007898,1746477067143,-400.0,0.00033972,8]
[360007899,1746477067152,-400.0,0.00033972,8]
[360007900,1746477067162,-526.54,0.00033972,8]
[360007901,1746477067171,-758.85,0.00033972,8]
[360007902,1746477067182,-24521.13,0.00033972,8]
[360007903,1746477067191,-400.0,0.00033972,8]
[360007904,1746477067201,-400.0,0.00033972,8]
[360007905,1746477067210,-400.0,0.00033972,8]
[360007906,1746477067220,-228.52109403,0.00033972,8]
[360007907,1746477067230,-400.0,0.00033972,8]
[360007908,1746477067241,-1075.31,0.00033972,8]
[360007909,1746477067251,-400.0,0.00033972,8]
[360007910,1746477067260,-989.84,0.00033972,8]
[360007911,1746477067270,-400.0,0.00033972,8]
[360007912,1746477067279,-2581.34,0.00033972,8]
[360007913,1746477067288,-498.57,0.00033972,8]
[360007914,1746477067298,-562.95,0.00033972,8]
[360007915,1746477067308,-400.0,0.00033972,8]
[360007916,1746477067317,-563.56,0.00033972,8]
[360007917,1746477067327,-400.0,0.00033972,8]
[360007918,1746477067336,-2005.02,0.00033972,8]
[360007919,1746477067346,-400.0,0.00033972,8]
[360007920,1746477067356,-1801.43,0.00033972,8]
[360007921,1746477067366,-9097.21,0.00033972,8]
[360007922,1746477067375,-3028.71,0.00033972,8]
[360007923,1746477067388,-400.0,0.00033972,8]
[360007924,1746477067398,-516.18071005,0.00033972,8]
[360007925,1746477067408,-1797.43,0.00033972,8]
[360007926,1746477067418,-531.52,0.00033972,8]
[360007927,1746477067429,-6864.69,0.00033972,8]
[360007928,1746477067439,-449.113188,0.00033972,14]
[360007929,1746477067448,-400.0,0.00033972,8]
[360007930,1746477067457,-449.113188,0.00033972,14]
[360007931,1746477067466,-400.0,0.00033972,8]
[360007932,1746477067475,-4586.98,0.00033972,8]
[360007933,1746477067485,-449.113188,0.00033972,14]
[360007934,1746477067495,-449.113194,0.00033972,14]
[360007935,1746477067504,-1501.28,0.00033972,8]
[360007936,1746477067514,-400.0,0.00033972,8]
[360007937,1746477067530,-2940.89,0.00033972,8]
[360007938,1746477067688,-547.97752653,0.00033972,2]
[360007939,1746477067700,-3563.17,0.00033972,8]
[360007940,1746477067709,-523.85,0.00033972,8]
[360007941,1746477067719,-400.0,0.00033972,8]
[360007942,1746477067730,-400.0,0.00033972,2]
[360007943,1746477067739,-1429.01,0.00033972,8]
[360007944,1746477067749,-726.2,0.00033972,8]
[360007945,1746477067759,-400.0,0.00033972,8]
[360007946,1746477067770,-494.32,0.00033972,8]
[360007947,1746477067780,-400.0,0.00033972,8]
[360007948,1746477067790,-400.0,0.00033972,2]
[360007949,1746477067799,-2667.55,0.00033972,8]
[360007950,1746477067808,-1250.0,0.0003398,2]
[360007951,1746477067817,-15447.0,0.00034,2]
[360007952,1746477067826,-199.57,0.00034,7]
[360007953,1746477067836,-402.903244,0.00034,14]
[360007954,1746477067845,-402.903244,0.00034,14]
[360007955,1746477067855,-160.0,0.00034,7]
[360007956,1746477067864,-160.0,0.00034,3]
[360007957,1746477067874,-801.33308482,0.00034003,30]
[360007958,1746477067884,-160.0,0.00034099,4]
[360007959,1746477067893,-151.648,0.00034158,2]
[360007960,1746477067903,-300.60704227,0.00034178,2]
[360007961,1746477067913,-600.0,0.00034221,5]
[360007962,1746477067923,-346.754623,0.00034246,14]
[360007963,1746477067933,-346.75463197,0.00034246,14]
[360007964,1746477067943,-1954.51,0.00034246,8]
[360007965,1746477067953,-719.2,0.00034246,8]
[360007966,1746477067962,-169.539145,0.00034246,14]
[360007967,1746477067971,-169.539145,0.00034246,14]
[360007968,1746477067981,-400.0,0.00034246,8]
[360007969,1746477067990,-169.539145,0.00034246,14]
[360007970,1746477067999,-169.539145,0.00034246,14]
[360007971,1746477068009,-400.0,0.00034246,8]
[360007972,1746477068019,-400.0,0.00034246,8]
[360007973,1746477068029,-253.416103,0.00034246,14]
[360007974,1746477068038,-253.416103,0.00034246,14]
[360007975,1746477068048,-253.416103,0.00034246,14]
[360007976,1746477068058,-253.416103,0.00034246,14]
[360007977,1746477068068,-392.99143153,0.00034246,8]
[360007978,1746477068077,-444.85,0.00034246,8]
[360007979,1746477068087,-400.0,0.00034246,8]
[360007980,1746477068097,-676.07,0.00034246,8]
[360007981,1746477068107,-206.545488,0.00034246,14]
[360007982,1746477068116,-206.54549,0.00034246,14]
[360007983,1746477068125,-400.0,0.00034246,8]
[360007984,1746477068135,-400.0,0.00034246,8]
[360007985,1746477068144,-631.57,0.00034246,8]
[360007986,1746477068154,-400.0,0.00034246,8]
[360007987,1746477068163,-400.0,0.00034246,8]
[360007988,1746477068173,-454.95,0.00034246,8]
[360007989,1746477068183,-479.7,0.00034246,8]
[360007990,1746477068193,-400.0,0.00034246,8]
[360007991,1746477068202,-400.0,0.00034246,8]
[360007992,1746477068212,-400.0,0.00034246,8]
[360007993,1746477068221,-429.94378316,0.00034246,8]
[360007994,1746477068230,-400.0,0.00034246,8]
[360007995,1746477068240,-639.16,0.00034246,8]
[360007996,1746477068249,-400.0,0.00034246,8]
[360007997,1746477068258,-400.0,0.00034246,8]
[360007998,1746477068268,-151.0,0.00034246,14]
[360007999,1746477068277,-151.0,0.00034246,14]
[360008000,1746477068286,-507.79,0.00034246,8]
[360008001,1746477068295,-400.0,0.00034246,8]
[360008002,1746477068305,-400.0,0.00034246,8]
[360008003,1746477068314,-400.0,0.00034246,8]
[360008004,1746477068324,-562.08,0.00034246,8]
[360008005,1746477068334,-402.903244,0.00034246,14]
[360008006,1746477068344,-402.903247,0.00034246,14]
[360008007,1746477068353,-504.71,0.00034246,8]
[360008008,1746477068362,-458.02,0.00034246,8]
[360008009,1746477068372,-400.0,0.00034246,8]
[360008010,1746477068381,-690.49,0.00034246,8]
[360008011,1746477068391,-400.0,0.00034246,8]
[360008012,1746477068400,-1211.7,0.00034246,8]
[360008013,1746477068409,-400.0,0.00034246,8]
[360008014,1746477068419,-716.28,0.00034246,8]
[360008015,1746477068429,-644.66,0.00034246,8]
[360008016,1746477068439,-400.0,0.00034246,8]
[360008017,1746477068448,-400.0,0.00034246,8]
[360008018,1746477068457,-730.5,0.00034246,8]
[360008019,1746477068466,-508.66254796,0.00034246,8]
[360008020,1746477068476,-400.0,0.00034246,8]
[360008021,1746477068486,-500.0,0.00034246,8]
[360008022,1746477068495,-400.0,0.00034246,8]
[360008023,1746477068504,-474.85,0.00034246,8]
[360008024,1746477068514,-400.0,0.00034246,8]
[360008025,1746477068526,-470.42855279,0.00034246,8]
[360008026,1746477068537,-400.0,0.00034246,8]
[360008027,1746477068546,-2439.35,0.00034246,8]
[360008028,1746477068555,-724.61,0.00034246,8]
[360008029,1746477068565,-400.0,0.00034246,8]
[360008030,1746477068574,-706.96,0.00034246,8]
[360008031,1746477068585,-499.18,0.00034246,8]
[360008032,1746477068595,-450.35872327,0.00034246,8]
[360008033,1746477068604,-400.0,0.00034246,8]
[360008034,1746477068614,-400.0,0.00034246,8]
[360008035,1746477068624,-473.77,0.00034246,8]
[360008036,1746477068634,-3364.55,0.00034246,8]
[360008037,1746477068644,-400.0,0.00034246,8]
[360008038,1746477068653,-714.95,0.00034246,8]
[360008039,1746477068664,-400.0,0.00034246,8]
[360008040,1746477068673,-500.0,0.00034246,8]
[360008041,1746477068683,-400.0,0.00034246,8]
[360008042,1746477068693,-400.0,0.00034246,8]
[360008043,1746477068702,-422.23,0.00034246,8]
[360008044,1746477068711,-400.0,0.00034246,8]
[360008045,1746477068722,-400.0,0.00034246,8]
[360008046,1746477068732,-400.0,0.00034246,8]
[360008047,1746477068741,-400.0,0.00034246,8]
[360008048,1746477068750,-715.56,0.00034246,8]
[360008049,1746477068759,-643.8,0.00034246,8]
[360008050,1746477068769,-400.0,0.00034246,8]
[360008051,1746477068778,-400.0,0.00034246,8]
[360008052,1746477068787,-400.0,0.00034246,8]
[360008053,1746477068796,-826.75,0.00034246,8]
[360008054,1746477068805,-1300.61,0.00034246,8]
[360008055,1746477068815,-1570.62,0.00034246,8]
[360008056,1746477068825,-400.0,0.00034246,8]
[360008057,1746477068836,-400.0,0.00034246,8]
[360008058,1746477068846,-923.0,0.00034246,8]
[360008059,1746477068858,-400.0,0.00034246,8]
[360008060,1746477068868,-400.0,0.00034246,8]
[360008061,1746477068880,-400.0,0.00034246,8]
[360008062,1746477068890,-400.0,0.00034246,8]
[360008063,1746477068900,-400.0,0.00034246,8]
[360008064,1746477068910,-407.51,0.00034246,8]
[360008065,1746477068921,-518.33,0.00034246,8]
[360008066,1746477068930,-400.0,0.00034246,8]
[360008067,1746477068939,-400.0,0.00034246,8]
[360008068,1746477068949,-481.88119386,0.00034246,8]
[360008069,1746477068958,-400.0,0.00034246,8]
[360008070,1746477068967,-400.0,0.00034246,8]
[360008071,1746477068977,-850.47,0.00034246,8]
[360008072,1746477068986,-896.58,0.00034246,8]
[360008073,1746477068995,-867.32,0.00034246,8]
[360008074,1746477069005,-1581.59,0.00034246,8]
[360008075,1746477069014,-779.84,0.00034246,8]
[360008076,1746477069024,-412.63,0.00034246,8]
[360008077,1746477069034,-1026.12,0.00034246,8]
[360008078,1746477069043,-963.38,0.00034246,8]
[360008079,1746477069053,-400.0,0.00034246,8]
[360008080,1746477069062,-400.0,0.00034246,8]
[360008081,1746477069073,-400.0,0.00034246,8]
[360008082,1746477069083,-1360.62,0.00034246,8]
[360008083,1746477069093,-400.0,0.00034246,8]